fUSD/lending_fUSD_20251210
["ID","MTS","AMOUNT","RATE_DAILY","PERIOD"]
[398102571,1765367447502,-5426.75016334,0.000248,3]
[398102572,1765367447525,-5665.42190652,0.000248,3]
[398102573,1765367447598,-2752.72649069,0.000248,3]
[398102574,1765367447610,-615.79003204,0.000248,3]
[398102575,1765367447625,-92043.61447152,0.000248,3]
[398102576,1765367447643,-1062.54707944,0.000248,3]
[398102577,1765367447759,-369.74634812,0.000248,3]
[398102578,1765367447774,-13473.46585079,0.000248,3]
[398102579,1765367447786,-1858.96,0.000248,3]
[398102580,1765367447962,-49482.4494159,0.000248,3]
[398102581,1765367447976,-150341.48867179,0.000248,3]
[398102582,1765367447988,-17224.51132821,0.0002488,3]
[398102583,1765367448002,-29415.62555829,0.0002488,3]
[398102584,1765367448015,-4779.2132464,0.0002488,3]
[398102585,1765367448026,-616.47288829,0.00024889,2]
[398102586,1765367448035,-17139.7833776,0.0002489,3]
[398102587,1765367448045,-86766.80321843,0.000249,3]
[398102588,1765367448061,-201586.1665884,0.000249,3]
[398102589,1765367448072,-2150.3,0.000249,3]
[398102590,1765367448088,-2324.92824516,0.000249,3]
[398102602,1765368290494,802.42,0.00025,120]
[398102610,1765368632040,-300.0,0.00015848,2]
[398102611,1765368632050,-1200.0,0.00015848,2]
[398102612,1765368632059,-300.0,0.00015848,2]
[398102613,1765368632069,-326.94390729,0.00015849,2]
[398102614,1765368632078,-500.0,0.00015849,2]
[398102615,1765368632087,-211.20704517,0.00015849,2]
[398102616,1765368632096,-407.38363965,0.00016379,2]
[398102617,1765368632105,-300.0,0.00016553,2]
[398102618,1765368632114,-2209.06203786,0.00016645,2]
[398102619,1765368632126,-290.93796214,0.00016645,2]
[398102620,1765368632135,-2500.0,0.00016645,2]
[398102621,1765368632144,-642.29123349,0.00016645,2]
[398102622,1765368632156,-1498.41572974,0.00016645,2]
[398102623,1765368632167,-359.29303677,0.00016645,2]
[398102624,1765368632175,-250.36043923,0.00016645,2]
[398102625,1765368632187,-1075.98436185,0.00016645,2]
[398102626,1765368632197,-250.0,0.00017,2]
[398102627,1765368632207,-2500.0,0.00017433,2]
[398102628,1765368632216,-195.0,0.00017433,2]
[398102629,1765368632226,-20.17971707,0.00017433,2]
[398102630,1765368632238,-229.82028293,0.00017433,2]
[398102631,1765368632247,-300.0,0.00017433,2]
[398102632,1765368632257,-153.09857672,0.00018224,7]
[398102633,1765368632266,-316.08114035,0.00019317,2]
[398102634,1765368632278,-307.91885965,0.00019317,2]
[398102635,1765368632288,-166.66,0.00019508,2]
[398102636,1765368632298,-624.0,0.00019516,2]
[398102637,1765368632308,-914.80409336,0.00019615,2]
[398102638,1765368632317,-624.0,0.00019715,2]
[398102639,1765368632326,-624.0,0.00019914,2]
[398102640,1765368632336,-166.66,0.00019919,2]
[398102641,1765368632346,-624.0,0.00020113,2]
[398102642,1765368632355,-445.78,0.000202,7]
[398102643,1765368632364,-624.0,0.00020312,2]
[398102645,1765368632374,-166.66,0.00020329,2]
[398102647,1765368632383,-200.0,0.00020459,2]
[398102649,1765368632392,-624.0,0.00020511,2]
[398102651,1765368632401,-914.80409332,0.00020644,2]
[398102653,1765368632411,-166.66,0.0002074,2]
[398102655,1765368632420,-514.77,0.00021077,2]
[398102657,1765368632429,-166.66,0.00021151,2]
[398102659,1765368632438,-166.66,0.00021561,2]
[398102660,1765368632448,-2000.0,0.000216,2]
[398102662,1765368632458,-516.26,0.000216,2]
[398102663,1765368632468,-151.43,0.000216,2]
[398102664,1765368632477,-530.89,0.000216,2]
[398102665,1765368632487,-150.47,0.000216,2]
[398102667,1765368632496,-914.80409332,0.00021673,2]
[398102669,1765368632505,-4843.6826,0.0002189,2]
[398102671,1765368632515,-5000.0,0.00021918,2]
[398102673,1765368632524,-500.0,0.00021918,4]
[398102675,1765368632534,-500.0,0.00021918,4]
[398102677,1765368632543,-500.0,0.00021918,4]
[398102679,1765368632552,-500.0,0.00021918,4]
[398102681,1765368632561,-500.0,0.00021918,4]
[398102683,1765368632570,-500.0,0.00021918,4]
[398102685,1765368632579,-500.0,0.00021918,4]
[398102687,1765368632592,-500.0,0.00021918,4]
[398102689,1765368632602,-500.0,0.00021918,4]
[398102691,1765368632611,-500.0,0.00021918,4]
[398102693,1765368632620,-500.0,0.00021918,2]
[398102695,1765368632631,-500.0,0.00022055,2]
[398102697,1765368632640,-500.0,0.00022192,2]
[398102699,1765368632649,-500.0,0.00022329,2]
[398102701,1765368632658,-577.16131008,0.0002269,2]
[398102703,1765368632669,-1301.0,0.0002269,2]
[398102705,1765368632679,-769.90600131,0.0002269,2]
[398102707,1765368632688,-165.35,0.00023257,2]
[398102709,1765368632697,-195.15,0.00023862,2]
[398102711,1765368632706,-510.58226073,0.0002394,2]
[398102713,1765368632718,-377.31369087,0.0002394,2]
[398102716,1765368632736,-112.1040484,0.0002394,2]
[398102718,1765368632746,-357.14926607,0.00024391,2]
[398102720,1765368632755,-500.0,0.000247,2]
[398102722,1765368632765,-153.78714464,0.000247,2]
[398102748,1765368638191,-914.80409332,0.00022703,2]
[398102749,1765368638201,-346.21285536,0.000247,2]
[398102750,1765368638211,-400.03535132,0.000247,2]
[398102751,1765368638243,-99.96464868,0.000247,2]
[398102752,1765368638252,-500.0,0.000247,2]
[398102753,1765368638262,-500.0,0.000247,2]
[398102754,1765368638271,-639.0,0.000247,2]
[398102755,1765368638281,-1305.14506709,0.000247,2]
[398102756,1765368638351,-771.65510317,0.000247,2]
[398102764,1765368640197,-649.55219853,0.00023732,2]
[398102812,1765368646396,-265.25189479,0.00023732,2]
[398102813,1765368646406,-2874.83128687,0.000247,2]
[398102850,1765369832185,-589.66,0.00013699,2]
[398102852,1765369832195,-362.62811295,0.00015068,2]
[398102853,1765369832204,-250.0,0.00015068,2]
[398102854,1765369832215,-500.0,0.00015747,2]
[398102856,1765369832225,-1200.0,0.00015749,2]
[398102858,1765369832234,-1200.0,0.00015749,2]
[398102859,1765369832243,-970.12334677,0.0001575,2]
[398102860,1765369832255,-29.87665323,0.0001575,2]
[398102861,1765369832265,-1000.0,0.0001575,2]
[398102862,1765369832274,-7.27765927,0.0001575,2]
[398102863,1765369832286,-992.72234073,0.0001575,2]
[398102864,1765369832295,-749.543,0.0001575,2]
[398102865,1765369832308,-304.93469778,0.000159,2]
[398102866,1765369832318,-13403.45671683,0.00016,4]
[398102867,1765369832329,-264.5794,0.00016,4]
[398102868,1765369832408,-4573.2,0.00016,4]
[398102936,1765369838261,-236.18661614,0.00015999,2]
[398102937,1765369838271,-500.0,0.00015999,2]
[398102938,1765369838280,-118.89338131,0.00016,4]
[398102939,1765369838316,-642.76071279,0.00016,4]
[398102940,1765369838373,-1134.22,0.00016,4]
[398102941,1765369838429,-61357.24715555,0.00016,4]
[398102942,1765369838541,-2633.43481688,0.00016,4]
[398102967,1765369840358,-500.0,0.00015999,2]
[398102968,1765369840368,-704.371,0.00016,4]
[398102969,1765369840412,-9155.84279121,0.00016,4]
[398102970,1765369840577,-9347.2832205,0.00016,4]
[398102971,1765369840588,-2499.84,0.00016,4]
[398102972,1765369840600,-851.48000085,0.00016,4]
[398102973,1765369840635,-26288.973,0.00016,4]
[398102974,1765369840746,-8143.50243499,0.00016,4]
[398102975,1765369840803,-929.18,0.00016,4]
[398102998,1765369843420,-12109.371219,0.00016,4]
[398102999,1765369843531,-447.27153168,0.00016,4]
[398103000,1765369843642,-403.87044045,0.00016,4]
[398103046,1765369847920,-429912.78200111,0.00016,4]
[398103047,1765369847930,-324.66088791,0.0001634,2]
[398103048,1765369847939,-304.93469777,0.00016762,2]
[398103049,1765369847948,-304.93469777,0.00017873,2]
[398103050,1765369847957,-1106.34939273,0.00017873,2]
[398103051,1765369847966,-205.58412654,0.0001799,2]
[398103052,1765369847976,-500.0,0.00017999,2]
[398103053,1765369847985,-500.0,0.00017999,2]
[398103054,1765369847995,-500.0,0.00017999,2]
[398103055,1765369848015,-500.0,0.00017999,2]
[398103056,1765369848025,-500.0,0.00017999,2]
[398103057,1765369848034,-500.0,0.00017999,2]
[398103058,1765369848044,-500.0,0.00017999,2]
[398103059,1765369848056,-500.0,0.00017999,2]
[398103060,1765369848066,-500.0,0.00017999,2]
[398103061,1765369848075,-436.65545128,0.00017999,2]
[398103062,1765369848090,-500.0,0.00017999,2]
[398103063,1765369848099,-500.0,0.00017999,2]
[398103064,1765369848109,-500.0,0.00017999,2]
[398103065,1765369848119,-292.28028264,0.00017999,2]
[398103066,1765369848130,-210.73737912,0.00017999,2]
[398103067,1765369848139,-500.0,0.00017999,2]
[398103068,1765369848148,-588.3111247,0.00017999,2]
[398103069,1765369848160,-406590.65954154,0.00018,2]
[398103070,1765369848173,-351.5521247,0.00018,2]
[398103071,1765369848184,-441.10871014,0.00018,2]
[398103072,1765369848196,-1285.71652175,0.00018,2]
[398103073,1765370010028,484.4806,0.00013599,2]
[398103076,1765371031545,-362.0,0.00015998,2]
[398103077,1765371031555,-500.0,0.00015999,2]
[398103078,1765371031565,-1000.0,0.00015999,3]
[398103079,1765371031574,-1200.0,0.00016845,2]
[398103080,1765371031583,-1029.46,0.00016846,2]
[398103081,1765371031593,-300.0,0.00017086,2]
[398103083,1765371031602,-5800.0,0.00017087,2]
[398103084,1765371031611,-5800.0,0.00017095,2]
[398103085,1765371031621,-5800.0,0.00017104,2]
[398103086,1765371031631,-1527.427,0.00017104,2]
[398103087,1765371031640,-159.186,0.00017104,2]
[398103088,1765371031649,-5800.0,0.00017113,2]
[398103090,1765371031658,-150.0,0.0001712,2]
[398103091,1765371031667,-5800.0,0.00017121,2]
[398103092,1765371031677,-5800.0,0.0001713,2]
[398103093,1765371031686,-5800.0,0.00017138,2]
[398103094,1765371031694,-5800.0,0.00017146,2]
[398103095,1765371031703,-5800.0,0.00017155,2]
[398103097,1765371031712,-1582.53167857,0.00017163,2]
[398103098,1765371037485,-4217.46832143,0.00017163,2]
[398103099,1765371037497,-5800.0,0.00017172,2]
[398103100,1765371037508,-250.0,0.00017341,2]
[398103101,1765371037518,-1000.0,0.00017483,2]
[398103102,1765371037529,-250.0,0.00017597,2]
[398103103,1765371037539,-5000.0,0.000179,2]
[398103104,1765371037548,-284.07827693,0.000179,2]
[398103105,1765371037558,-207.1558334,0.00017973,2]
[398103106,1765371037567,-995.71445352,0.00017973,2]
[398103107,1765371037577,-200.0,0.00017989,2]
[398103108,1765371037586,-151.0,0.00017989,2]
[398103109,1765371037596,-151.0,0.00017989,2]
[398103110,1765371037605,-151.0,0.00017989,2]
[398103111,1765371037615,-151.0,0.00017989,2]
[398103112,1765371037624,-151.0,0.00017989,2]
[398103113,1765371037634,-151.0,0.00017989,2]
[398103114,1765371037643,-151.0,0.00017989,2]
[398103115,1765371037653,-151.0,0.00017989,2]
[398103116,1765371037662,-151.0,0.00017989,2]
[398103117,1765371037671,-151.0,0.00017989,2]
[398103118,1765371037680,-500.0,0.00017989,2]
[398103119,1765371037690,-151.0,0.00017989,2]
[398103120,1765371037699,-151.0,0.00017989,2]
[398103122,1765371037708,-500.0,0.00017989,2]
[398103125,1765371037718,-151.0,0.00017989,2]
[398103126,1765371037728,-151.0,0.00017989,2]
[398103127,1765371037738,-500.0,0.00017989,2]
[398103128,1765371037747,-151.0,0.00017989,2]
[398103129,1765371037758,-500.0,0.00017989,2]
[398103130,1765371037767,-151.0,0.00017989,2]
[398103131,1765371037776,-500.0,0.00017989,2]
[398103132,1765371037785,-151.0,0.00017989,2]
[398103133,1765371037794,-500.0,0.00017989,2]
[398103134,1765371037803,-151.0,0.00017989,2]
[398103136,1765371037813,-500.0,0.00017989,2]
[398103138,1765371037822,-151.0,0.00017989,2]
[398103140,1765371037831,-500.0,0.00017989,2]
[398103142,1765371037840,-151.0,0.00017989,2]
[398103144,1765371037849,-500.0,0.00017989,2]
[398103146,1765371037858,-151.0,0.00017989,2]
[398103148,1765371037867,-500.0,0.00017989,2]
[398103150,1765371037876,-151.0,0.00017989,2]
[398103152,1765371037885,-500.0,0.00017989,2]
[398103153,1765371037894,-151.0,0.00017989,2]
[398103154,1765371037902,-500.0,0.00017989,2]
[398103155,1765371037911,-500.0,0.00017989,2]
[398103156,1765371037920,-500.0,0.00017989,2]
[398103157,1765371037929,-500.0,0.00017989,2]
[398103158,1765371037938,-500.0,0.00017989,2]
[398103159,1765371037947,-500.0,0.00017989,2]
[398103160,1765371037956,-500.0,0.00017989,2]
[398103161,1765371037964,-500.0,0.00017989,2]
[398103162,1765371037975,-500.0,0.00017989,2]
[398103163,1765371037985,-500.0,0.00017989,2]
[398103164,1765371037995,-200.0,0.00017989,2]
[398103165,1765371038004,-500.0,0.00017989,2]
[398103166,1765371038013,-200.0,0.00017989,2]
[398103167,1765371038023,-500.0,0.00017989,2]
[398103168,1765371038032,-500.0,0.00017999,2]
[398103169,1765371038042,-500.0,0.00017999,2]
[398103170,1765371038051,-500.0,0.00017999,2]
[398103171,1765371038060,-401.90104446,0.00017999,2]
[398103172,1765371038069,-500.0,0.00017999,2]
[398103173,1765371038078,-500.0,0.00017999,2]
[398103174,1765371038087,-604.6,0.00017999,2]
[398103175,1765371038097,-247.73741513,0.00017999,2]
[398103176,1765371038106,-500.0,0.00017999,2]
[398103177,1765371038115,-500.0,0.00017999,2]
[398103178,1765371038124,-500.0,0.00017999,2]
[398103179,1765371038134,-500.0,0.00017999,2]
[398103180,1765371038143,-500.0,0.00017999,2]
[398103181,1765371038152,-500.0,0.00017999,2]
[398103182,1765371038161,-500.0,0.00017999,2]
[398103183,1765371038171,-500.0,0.00017999,2]
[398103184,1765371038180,-500.0,0.00017999,2]
[398103185,1765371038189,-500.0,0.00017999,2]
[398103186,1765371038198,-500.0,0.00017999,2]
[398103187,1765371038208,-500.0,0.00017999,2]
[398103188,1765371038217,-500.0,0.00017999,2]
[398103189,1765371038226,-500.0,0.00017999,2]
[398103190,1765371038237,-471.89237896,0.00017999,2]
[398103191,1765371038246,-500.0,0.00017999,2]
[398103192,1765371038255,-500.0,0.00017999,2]
[398103193,1765371038264,-500.0,0.00017999,2]
[398103194,1765371038274,-500.0,0.00017999,2]
[398103195,1765371038283,-425.00785467,0.00017999,2]
[398103196,1765371038292,-296.06730794,0.00017999,2]
[398103197,1765371038301,-515.36,0.00017999,2]
[398103198,1765371038311,-500.0,0.00017999,2]
[398103199,1765371038321,-505.26445054,0.00017999,2]
[398103200,1765371038330,-500.0,0.00017999,2]
[398103201,1765371038340,-500.0,0.00017999,2]
[398103202,1765371038349,-500.0,0.00017999,2]
[398103203,1765371038358,-500.99818725,0.00017999,2]
[398103204,1765371038367,-634.61,0.00017999,2]
[398103205,1765371038376,-348.48928791,0.00017999,2]
[398103206,1765371038386,-506.85788425,0.00017999,2]
[398103207,1765371038395,-500.0,0.00017999,2]
[398103208,1765371038405,-500.0,0.00017999,2]
[398103209,1765371038415,-500.0,0.00017999,2]
[398103210,1765371038429,-500.0,0.00017999,2]
[398103211,1765371038440,-500.0,0.00017999,2]
[398103212,1765371038450,-500.0,0.00017999,2]
[398103213,1765371038459,-500.0,0.00017999,2]
[398103214,1765371038471,-500.0,0.00017999,2]
[398103215,1765371038480,-500.0,0.00017999,2]
[398103216,1765371038490,-500.0,0.00017999,2]
[398103217,1765371038500,-1000.0,0.00017999,2]
[398103218,1765371038510,-500.0,0.00017999,2]
[398103219,1765371038519,-500.0,0.00017999,2]
[398103220,1765371038528,-500.0,0.00017999,2]
[398103221,1765371038537,-500.0,0.00017999,2]
[398103222,1765371038546,-500.0,0.00017999,2]
[398103223,1765371038556,-562.58118347,0.00017999,2]
[398103224,1765371038565,-500.0,0.00017999,2]
[398103225,1765371038575,-597.16,0.00017999,2]
[398103226,1765371038585,-500.0,0.00017999,2]
[398103227,1765371038594,-500.0,0.00017999,2]
[398103228,1765371038604,-382.79005157,0.00017999,2]
[398103229,1765371038614,-225.46,0.00017999,2]
[398103230,1765371038624,-500.0,0.00017999,2]
[398103231,1765371038633,-518.11,0.00017999,2]
[398103232,1765371038643,-500.0,0.00017999,2]
[398103233,1765371038652,-465.97984664,0.00017999,2]
[398103234,1765371038665,-534.02015336,0.00017999,2]
[398103235,1765371038674,-405.58564222,0.00017999,2]
[398103236,1765371038684,-500.0,0.00017999,2]
[398103237,1765371038693,-500.0,0.00017999,2]
[398103238,1765371038702,-500.0,0.00017999,2]
[398103239,1765371038712,-500.0,0.00017999,2]
[398103240,1765371038721,-500.0,0.00017999,2]
[398103241,1765371038730,-500.0,0.00017999,2]
[398103242,1765371038740,-500.0,0.00017999,2]
[398103243,1765371038750,-500.0,0.00017999,2]
[398103244,1765371038759,-500.0,0.00017999,2]
[398103245,1765371038769,-210.09131122,0.00017999,2]
[398103246,1765371038778,-500.0,0.00017999,2]
[398103247,1765371038787,-500.0,0.00017999,2]
[398103248,1765371038797,-500.0,0.00017999,2]
[398103249,1765371038806,-500.0,0.00017999,2]
[398103250,1765371038816,-500.0,0.00017999,2]
[398103251,1765371038825,-500.0,0.00017999,2]
[398103252,1765371038835,-500.0,0.00017999,2]
[398103253,1765371038844,-500.0,0.00017999,2]
[398103254,1765371038853,-500.0,0.00017999,2]
[398103255,1765371038863,-500.0,0.00017999,2]
[398103256,1765371038872,-500.0,0.00017999,2]
[398103257,1765371038882,-500.0,0.00017999,2]
[398103258,1765371038891,-500.0,0.00017999,2]
[398103259,1765371038901,-500.0,0.00017999,2]
[398103260,1765371038911,-1006443.37369645,0.00018,2]
[398103261,1765371038920,-222.8197,0.00018,2]
[398103262,1765371038930,-6429.65412711,0.00018073,2]
[398103263,1765371038940,-1000.0,0.00018082,2]
[398103264,1765371038949,-500.0,0.00018273,2]
[398103265,1765371038958,-500.0,0.00018273,2]
[398103266,1765371038968,-500.0,0.00018273,2]
[398103267,1765371038977,-485.23,0.00018273,2]
[398103268,1765371038987,-500.0,0.00018273,2]
[398103269,1765371038996,-500.0,0.00018273,2]
[398103270,1765371039006,-500.0,0.00018273,2]
[398103271,1765371039016,-500.0,0.00018273,2]
[398103272,1765371039026,-500.0,0.00018273,2]
[398103273,1765371039035,-401.71,0.00018273,2]
[398103274,1765371039045,-298.56,0.00018273,2]
[398103275,1765371039055,-500.0,0.00018273,2]
[398103276,1765371039064,-500.0,0.00018273,2]
[398103277,1765371039074,-500.0,0.00018273,2]
[398103278,1765371039083,-500.0,0.00018273,2]
[398103279,1765371039093,-500.0,0.00018273,2]
[398103280,1765371039102,-500.0,0.00018547,2]
[398103281,1765371039112,-500.0,0.00018547,2]
[398103282,1765371039121,-500.0,0.00018547,2]
[398103283,1765371039131,-500.0,0.00018547,2]
[398103284,1765371039140,-188.14,0.00018547,2]
[398103285,1765371039150,-500.0,0.00018547,2]
[398103286,1765371039159,-500.0,0.00018547,2]
[398103287,1765371039168,-500.0,0.00018547,2]
[398103288,1765371039178,-500.0,0.00018547,2]
[398103289,1765371039188,-500.0,0.00018547,2]
[398103290,1765371039198,-500.0,0.00018547,2]
[398103291,1765371039208,-1000.0,0.0001876,2]
[398103292,1765371039218,-500.0,0.00018821,2]
[398103293,1765371039227,-500.0,0.00018821,2]
[398103294,1765371039236,-500.0,0.00018821,2]
[398103295,1765371039245,-500.0,0.00018821,2]
[398103296,1765371039256,-500.0,0.00018821,2]
[398103297,1765371039266,-500.0,0.00018821,2]
[398103298,1765371039275,-2000.0,0.000189,2]
[398103299,1765371039283,-500.0,0.00019095,2]
[398103300,1765371039292,-500.0,0.00019095,2]
[398103301,1765371039302,-500.0,0.00019095,2]
[398103302,1765371039312,-500.0,0.00019095,2]
[398103303,1765371039321,-500.0,0.00019369,2]
[398103304,1765371039330,-500.0,0.00019369,2]
[398103305,1765371039339,-500.0,0.00019369,2]
[398103306,1765371039349,-1000.0,0.00019438,2]
[398103307,1765371039358,-500.0,0.00019643,2]
[398103308,1765371039368,-500.0,0.00019643,2]
[398103309,1765371039377,-393.739534,0.00019643,2]
[398103310,1765371039386,-1000.0,0.00019669,2]
[398103312,1765371039395,-500.0,0.00019711,2]
[398103314,1765371039404,-500.0,0.00019917,2]
[398103316,1765371039414,-500.0,0.00019917,2]
[398103317,1765371039428,-25000.0,0.0001993,3]
[398103318,1765371039438,-150.84,0.00019937,2]
[398103319,1765371039448,-25000.0,0.00019938,3]
[398103320,1765371039457,-25000.0,0.00019947,3]
[398103321,1765371039467,-150.84,0.00019955,2]
[398103322,1765371039476,-25000.0,0.00019956,3]
[398103323,1765371039486,-25000.0,0.00019965,3]
[398103324,1765371039495,-25000.0,0.00019974,3]
[398103325,1765371039506,-150.84,0.00019981,2]
[398103326,1765371039515,-25000.0,0.00019982,3]
[398103327,1765371039525,-25000.0,0.00019991,3]
[398103328,1765371039534,-25000.0,0.0002,3]
[398103329,1765371039543,-1000.0,0.0002,7]
[398103330,1765371039553,-1000.0,0.00020116,2]
[398103331,1765371039562,-589.66,0.00020187,2]
[398103332,1765371039571,-500.0,0.00020191,2]
[398103333,1765371039580,-500.0,0.00020191,2]
[398103334,1765371039590,-401.2,0.000202,7]
[398103335,1765371039599,-156.12,0.00020448,2]
[398103336,1765371039609,-166.86367563,0.00020465,2]
[398103337,1765371039618,-500.0,0.00020465,2]
[398103338,1765371039627,-995.71445343,0.0002058,2]
[398103339,1765371039637,-6429.65412709,0.00020669,2]
[398103340,1765371039646,-200.0,0.00020728,2]
[398103341,1765371039656,-500.0,0.00020739,2]
[398103342,1765371039665,-1000.0,0.00020795,2]
[398103343,1765371039674,-500.0,0.00021013,2]
[398103344,1765371039684,-150.84,0.00021253,2]
[398103345,1765371039693,-284.0782769,0.00021263,2]
[398103346,1765371039702,-500.0,0.00021287,2]
[398103347,1765371039712,-1954.65,0.00021352,2]
[398103348,1765371039722,-500.0,0.00021389,2]
[398103349,1765371039732,-500.0,0.00021561,2]
[398103350,1765371039742,-620.16,0.00021757,2]
[398103351,1765371039755,-346.27,0.00021757,2]
[398103352,1765371039764,-9999.99,0.00021757,2]
[398103353,1765371039774,-500.0,0.00021764,2]
[398103354,1765371039786,-500.0,0.00021764,2]
[398103355,1765371039795,-500.0,0.00021764,2]
[398103356,1765371039804,-500.0,0.00021764,2]
[398103357,1765371039813,-500.0,0.00021764,2]
[398103358,1765371039822,-500.0,0.00021764,2]
[398103359,1765371039831,-500.0,0.00021764,2]
[398103360,1765371039841,-353.0,0.00021764,2]
[398103361,1765371039850,-200.0,0.00021764,2]
[398103362,1765371039859,-200.0,0.00021764,2]
[398103363,1765371039868,-200.0,0.00021764,2]
[398103364,1765371039878,-200.0,0.00021764,2]
[398103365,1765371039887,-200.0,0.00021764,2]
[398103366,1765371039895,-200.0,0.00021764,2]
[398103367,1765371039905,-200.0,0.00021764,2]
[398103368,1765371039914,-200.0,0.00021764,2]
[398103369,1765371039923,-200.0,0.00021764,2]
[398103370,1765371039933,-200.0,0.00021764,2]
[398103371,1765371039942,-200.0,0.00021764,2]
[398103372,1765371039951,-200.0,0.00021764,2]
[398103373,1765371039960,-200.0,0.00021764,2]
[398103374,1765371039969,-200.0,0.00021764,2]
[398103375,1765371039978,-200.0,0.00021764,2]
[398103376,1765371039987,-200.0,0.00021764,2]
[398103377,1765371039999,-200.0,0.00021764,2]
[398103378,1765371040008,-200.0,0.00021764,2]
[398103379,1765371040019,-200.0,0.00021764,2]
[398103380,1765371040029,-200.0,0.00021764,2]
[398103381,1765371040041,-200.0,0.00021764,2]
[398103382,1765371040052,-200.0,0.00021764,2]
[398103383,1765371040062,-200.0,0.00021764,2]
[398103384,1765371040072,-200.0,0.00021764,2]
[398103385,1765371040081,-200.0,0.00021764,2]
[398103386,1765371040091,-200.0,0.00021764,2]
[398103387,1765371040100,-200.0,0.00021764,2]
[398103388,1765371040109,-200.0,0.00021764,2]
[398103389,1765371040118,-200.0,0.00021764,2]
[398103390,1765371040129,-200.0,0.00021764,2]
[398103391,1765371040138,-800.0,0.00021764,2]
[398103392,1765371040147,-800.0,0.00021764,2]
[398103393,1765371040156,-800.0,0.00021764,2]
[398103394,1765371040166,-800.0,0.00021764,2]
[398103395,1765371040175,-800.0,0.00021764,2]
[398103396,1765371040185,-800.0,0.00021764,2]
[398103397,1765371040194,-800.0,0.00021764,2]
[398103398,1765371040203,-800.0,0.00021764,2]
[398103399,1765371040212,-800.0,0.00021764,2]
[398103400,1765371040222,-800.0,0.00021764,2]
[398103401,1765371040232,-800.0,0.00021764,2]
[398103402,1765371040241,-800.0,0.00021764,2]
[398103403,1765371040251,-800.0,0.00021764,2]
[398103404,1765371040260,-200.0,0.00021764,2]
[398103405,1765371040270,-200.0,0.00021764,2]
[398103406,1765371040279,-200.0,0.00021764,2]
[398103407,1765371040288,-200.0,0.00021764,2]
[398103408,1765371040297,-200.0,0.00021764,2]
[398103409,1765371040306,-333.0,0.00021764,2]
[398103410,1765371040316,-800.0,0.00021764,2]
[398103411,1765371040325,-800.0,0.00021764,2]
[398103412,1765371040335,-800.0,0.00021764,2]
[398103413,1765371040344,-800.0,0.00021764,2]
[398103414,1765371040354,-800.0,0.00021764,2]
[398103415,1765371040364,-800.0,0.00021764,2]
[398103416,1765371040373,-800.0,0.00021764,2]
[398103417,1765371040382,-800.0,0.00021764,2]
[398103418,1765371040391,-800.0,0.00021764,2]
[398103419,1765371040401,-800.0,0.00021764,2]
[398103420,1765371040411,-800.0,0.00021764,2]
[398103421,1765371040422,-800.0,0.00021764,2]
[398103422,1765371040433,-800.0,0.00021764,2]